[Event "CZE-ch Open 2018"]
[Site "Ostrava"]
[Date "2018.05.06"]
[Round "9"]
[White "Jelinek, Michal"]
[Black "Svatos, Jan"]
[Result "0-1"]
[ECO "E32"]
[WhiteElo "2134"]
[BlackElo "2272"]
[Annotator "NA"]
[PlyCount "118"]
[EventDate "2018.??.??"]
[EventCountry "CZE"]
[SourceTitle "playchess.com"]
[Source "ChessBase"]
[SourceQuality "1"]
[TimeControl "40/5400+30:900+30"]

1. d4 {[%emt 0:00:57]} Nf6 {[%emt 0:00:06]} 2. c4 {[%emt 0:00:14]} e6 {[%emt 0:00:03]} 3. Nc3 {[%emt 0:00:30]} Bb4 {[%emt 0:00:06]} 4. Qc2 {[%emt 0:01:09]} O-O {[%emt 0:00:29]} 5. a3 {[%emt 0:01:22]} Bxc3+ {[%emt 0:00:51]} 6. Qxc3 {[%emt 0:00:05]} b6 {[%emt 0:00:16]} 7. Bg5 {[%emt 0:01:17]} Bb7 {[%emt 0:00:13]} 8. e3 {[%emt 0:00:37]} c5 {[%emt 0:00:51]} 9. dxc5 {[%emt 0:04:30]} bxc5 {[%emt 0:00:02]} 10. f3 {[%emt 0:00:30]} Nc6 {[%emt 0:02:08]} 11. Bd3 {[%emt 0:03:48]} h6 {[%emt 0:08:24]} 12. Bh4 {[%emt 0:00:08] LiveBook: 5 Games} a5 {[%emt 0:07:42]} 13. Ne2 {[%emt 0:00:34]} a4 {[%emt 0:01:15]} 14. Qc2 {[%emt 0:02:40]} (14. O-O $14) 14... Ne5 {[%emt 0:07:58]} 15. O-O-O {[%emt 0:25:07]} Ba6 $11 {[%emt 0:32:24]} 16. e4 {[%emt 0:02:34]} g5 {[%emt 0:09:51]} 17. Bg3 {[%emt 0:04:54]} Nxd3+ {[%emt 0:01:22]} 18. Rxd3 {[%emt 0:00:17]} d5 {[%emt 0:00:04]} 19. exd5 {[%emt 0:04:10]} exd5 {[%emt 0:00:45]} 20. h4 {[%emt 0:00:27]} g4 {[%emt 0:05:50]} 21. Be5 {[%emt 0:04:42]} Re8 {[%emt 0:08:13]} 22. Bxf6 {[%emt 0:09:29]} Qxf6 {[%emt 0:00:02]} 23. Rxd5 {[%emt 0:00:26]} Rab8 {[%emt 0:01:40]} 24. Rf5 {[%emt 0:08:50]} Qe6 {[%emt 0:03:30]} 25. Nf4 {[%emt 0:05:53]} Qe3+ {[%emt 0:00:27]} 26. Kb1 {[%emt 0:01:47]} Qxa3 {[%emt 0:00:29]} 27. Nd5 {[%emt 0:00:27]} Bxc4 {[%emt 0:04:01]} 28. Nf6+ {[%emt 0:11:56]} Kh8 {[%emt 0:01:18]} 29. Re5 {[%emt 0:02:10]} Rxb2+ {[%emt 0:03:47]} 30. Qxb2 {[%emt 0:00:05]} Qxb2+ {[%emt 0:00:08]} 31. Kxb2 {[%emt 0:00:02]} Rxe5 {[%emt 0:00:06]} 32. fxg4 {[%emt 0:00:42]} Kg7 {[%emt 0:01:13]} 33. Nd7 {[%emt 0:00:36]} Re2+ {[%emt 0:00:11]} 34. Kc3 {[%emt 0:00:10]} Be6 35. Nxc5 {[%emt 0:00:15]} a3 {[%emt 0:01:14]} 36. Ra1 {[%emt 0:03:03]} a2 {[%emt 0:00:25]} 37. Nxe6+ {[%emt 0:01:21]} fxe6 {[%emt 0:00:06]} 38. Kb3 {[%emt 0:00:28]} Rxg2 {[%emt 0:00:09]} 39. Rxa2 {[%emt 0:00:45]} Rg3+ {[%emt 0:01:25]} 40. Kc4 {[%emt 0:00:32]} Rxg4+ {[%emt 0:15:17]} 41. Kd3 {[%emt 0:00:00]} Rxh4 {[%emt 0:00:00]} 42. Re2 {[%emt 0:00:00]} Kf6 {[%emt 0:00:00]} 43. Rf2+ {[%emt 0:00:00]} Ke5 {[%emt 0:00:00]} 44. Rf8 {[%emt 0:00:00]} h5 {[%emt 0:00:00]} 45. Ke3 {[%emt 0:00:00]} Ra4 {[%emt 0:00:00]} 46. Rh8 {[%emt 0:00:00]} h4 {[%emt 0:00:00]} 47. Rh5+ {[%emt 0:00:06]} Kf6 {[%emt 0:00:00]} 48. Kf3 {[%emt 0:00:27]} h3 {[%emt 0:00:00]} 49. Kg3 {[%emt 0:01:24]} Ra3+ {[%emt 0:00:00]} 50. Kf4 {[%emt 0:00:19]} e5+ {[%emt 0:00:00]} 51. Ke4 {[%emt 0:05:25]} Kg6 {[%emt 0:00:00]} 52. Rh8 {[%emt 0:00:26]} Kg5 {[%emt 0:00:00]} 53. Kxe5 {[%emt 0:03:10]} Kg4 {[%emt 0:00:00]} 54. Ke4 {[%emt 0:00:12]} Kg3 {[%emt 0:00:00]} 55. Rg8+ {[%emt 0:05:52]} Kf2 {[%emt 0:00:00]} 56. Rh8 {[%emt 0:00:15]} Kg2 {[%emt 0:00:10]} 57. Kf4 {[%emt 0:00:58]} Ra4+ {[%emt 0:04:02]} 58. Ke3 {[%emt 0:00:05]} h2 {[%emt 0:00:48]} 59. Rg8+ {[%emt 0:02:08]} Kh3 {[%emt 0:00:05] Kd4} 0-1

[Event "CZE-ch Open 2018"]
[Site "Ostrava"]
[Date "2018.05.06"]
[Round "9"]
[White "Bures, Martin"]
[Black "Jedlicka, Ales"]
[Result "0-1"]
[ECO "A48"]
[WhiteElo "2100"]
[BlackElo "2238"]
[Annotator "ChessBase"]
[PlyCount "148"]
[EventDate "2018.??.??"]
[EventCountry "CZE"]
[SourceTitle "playchess.com"]
[Source "ChessBase"]
[SourceQuality "1"]
[TimeControl "40/5400+30:900+30"]

1. d4 {[%emt 0:01:27]} Nf6 {[%emt 0:00:17]} 2. Nf3 {[%emt 0:00:03]} g6 {[%emt 0:00:33]} 3. Bg5 {[%emt 0:00:03]} Bg7 {[%emt 0:00:14]} 4. c3 {[%emt 0:00:05]} O-O {[%emt 0:00:21]} 5. Nbd2 {[%emt 0:00:26]} d6 {[%emt 0:00:26]} 6. e4 {[%emt 0:03:16]} c5 {[%emt 0:00:42]} 7. dxc5 {[%emt 0:03:20]} dxc5 {[%emt 0:00:13]} 8. Bc4 {[%emt 0:00:16]} Nc6 {[%emt 0:00:29]} 9. a4 {[%emt 0:00:41]} Qc7 {[%emt 0:01:29]} 10. O-O {[%emt 0:05:46]} Bg4 {[%emt 0:01:19]} 11. Qc2 {[%emt 0:04:32]} Rad8 {[%emt 0:01:39]} 12. Rfe1 {[%emt 0:14:59]} Nh5 {[%emt 0:03:25]} 13. h3 {[%emt 0:02:37]} Bc8 {[%emt 0:00:17]} 14. Rad1 {[%emt 0:03:30]} h6 {[%emt 0:09:30]} 15. Be3 {[%emt 0:02:56]} b6 {[%emt 0:02:36]} 16. Nf1 {[%emt 0:01:46]} Nf4 {[%emt 0:01:55]} 17. Rxd8 {[%emt 0:00:41]} Nxd8 {[%emt 0:01:58]} 18. e5 {[%emt 0:04:35]} Be6 {[%emt 0:05:24]} 19. Bxe6 {[%emt 0:06:14]} Nfxe6 {[%emt 0:02:02]} 20. Qe4 {[%emt 0:02:22]} Nc6 {[%emt 0:03:11]} 21. Bc1 {[%emt 0:03:14]} Rd8 {[%emt 0:01:40]} 22. Ne3 {[%emt 0:07:07]} Nxe5 {[%emt 0:02:34]} 23. Nxe5 {[%emt 0:00:55]} Qxe5 {[%emt 0:00:20]} 24. Qxe5 {[%emt 0:00:43]} Bxe5 {[%emt 0:00:10]} 25. Ng4 {[%emt 0:00:11]} Bc7 {[%emt 0:07:25]} 26. Nxh6+ {[%emt 0:01:32]} Kf8 {[%emt 0:01:37]} 27. Ng4 {[%emt 0:00:03]} Bf4 {[%emt 0:01:36]} 28. Ne3 {[%emt 0:02:18]} f6 {[%emt 0:03:17]} 29. Kf1 {[%emt 0:02:28]} Kf7 {[%emt 0:00:14]} 30. Ke2 {[%emt 0:00:36]} Bc7 {[%emt 0:03:08]} 31. Nc4 {[%emt 0:07:25]} Rh8 {[%emt 0:06:45]} 32. Rd1 {[%emt 0:02:28]} Ke8 {[%emt 0:00:57]} 33. Kf3 {[%emt 0:01:34]} Rh4 {[%emt 0:01:34]} 34. b3 {[%emt 0:00:13]} Rh5 {[%emt 0:08:29]} 35. Be3 {[%emt 0:04:09]} Rf5+ {[%emt 0:03:40]} 36. Ke4 {[%emt 0:01:22]} Bf4 {[%emt 0:02:21]} 37. h4 {[%emt 0:05:58]} Bxe3 {[%emt 0:00:38]} 38. fxe3 {[%emt 0:02:26]} Rf2 {[%emt 0:04:33]} 39. Rd2 {[%emt 0:00:06]} Rf1 {[%emt 0:00:28]} 40. Na3 {[%emt 0:03:07]} Ra1 {[%emt 0:19:23]} 41. Nb5 {[%emt 0:00:00]} a6 {[%emt 0:00:00]} 42. Na7 {[%emt 0:00:00]} Rb1 {[%emt 0:00:00]} 43. Nc6 {[%emt 0:08:09]} Rxb3 {[%emt 0:00:00]} 44. Kd5 {[%emt 0:00:20]} Kf7 {[%emt 0:00:00]} 45. Kc4 {[%emt 0:00:52]} Rb1 {[%emt 0:00:00]} 46. Nb8 {[%emt 0:05:18]} b5+ {[%emt 0:00:00]} 47. axb5 {[%emt 0:00:09]} axb5+ {[%emt 0:00:00]} 48. Kd5 {[%emt 0:00:11]} b4 {[%emt 0:00:00]} 49. cxb4 {[%emt 0:00:47]} Rxb4 {[%emt 0:00:00]} 50. Nc6 {[%emt 0:01:25]} Rxh4 {[%emt 0:00:00]} 51. Ra2 {[%emt 0:00:32]} Rh5+ {[%emt 0:00:00]} 52. Kc4 {[%emt 0:00:06]} Ng7 {[%emt 0:00:00]} 53. Ra7 {[%emt 0:02:00]} Nf5 {[%emt 0:00:00]} 54. e4 {[%emt 0:00:30]} Rh4 {[%emt 0:00:00]} 55. Kd5 {[%emt 0:01:21]} Ne3+ {[%emt 0:00:00]} 56. Kxc5 {[%emt 0:00:24]} Rxe4 {[%emt 0:00:00]} 57. Nd8+ {[%emt 0:01:14]} Ke8 {[%emt 0:00:00]} 58. Nc6 {[%emt 0:00:38]} Nxg2 {[%emt 0:00:00]} 59. Kd5 {[%emt 0:00:05]} Re1 {[%emt 0:00:17]} 60. Ra8+ {[%emt 0:01:11]} Kf7 {[%emt 0:01:11]} 61. Nd8+ {[%emt 0:00:24]} Kg7 {[%emt 0:00:32]} 62. Ne6+ {[%emt 0:00:01]} Kh7 {[%emt 0:00:31]} 63. Re8 {[%emt 0:00:40]} Re5+ {[%emt 0:00:16]} 64. Kc6 {[%emt 0:01:24]} Rxe6+ {[%emt 0:00:10]} 65. Kd7 {[%emt 0:00:01]} Nf4 {[%emt 0:00:43]} 66. Ra8 {[%emt 0:00:18]} g5 {[%emt 0:00:59]} 67. Ke8 {[%emt 0:00:07]} Kg7 {[%emt 0:00:26]} 68. Rd8 {[%emt 0:00:14]} f5 {[%emt 0:01:12]} 69. Rd1 {[%emt 0:00:12]} Kf6 {[%emt 0:00:28]} 70. Rh1 {[%emt 0:00:44]} g4 {[%emt 0:00:39]} 71. Kf8 {[%emt 0:00:14]} Ng6+ {[%emt 0:00:31]} 72. Ke8 {[%emt 0:01:03]} Ra6 {[%emt 0:00:20]} 73. Rd1 {[%emt 0:01:06]} g3 {[%emt 0:01:15]} 74. Rd6+ {[%emt 0:00:51]} exd6 {[%emt 0:00:14]} 0-1

[Event "CZE-ch Open 2018"]
[Site "Ostrava"]
[Date "2018.05.06"]
[Round "9"]
[White "Havelka, Ondrej"]
[Black "Voloshin, Leonid"]
[Result "0-1"]
[ECO "C41"]
[WhiteElo "2041"]
[BlackElo "2370"]
[Annotator "NA"]
[PlyCount "122"]
[EventDate "2018.??.??"]
[EventCountry "CZE"]
[SourceTitle "playchess.com"]
[Source "ChessBase"]
[SourceQuality "1"]
[TimeControl "40/5400+30:900+30"]

1. d4 {[%emt 0:00:00]} d6 {[%emt 0:00:04]} 2. e4 {[%emt 0:01:08]} Nf6 {[%emt 0:00:13]} 3. Nc3 {[%emt 0:00:05]} e5 {[%emt 0:00:03]} 4. Nf3 {[%emt 0:00:39]} Nbd7 {[%emt 0:00:06]} 5. g4 {[%emt 0:05:10]} g6 {[%emt 0:01:15]} ({Better is} 5... Nxg4 $11 6. Bg5 Ngf6) 6. g5 {[%emt 0:12:22]} Nh5 $1 {[%emt 0:00:08]} 7. Be3 {[%emt 0:00:07]} Bg7 {[%emt 0:00:05]} 8. Qd2 {[%emt 0:00:35]} c6 {[%emt 0:02:41] LiveBook: 12 Games} 9. O-O-O {[%emt 0:00:43]} O-O {[%emt 0:09:15]} 10. dxe5 {[%emt 0:06:36]} dxe5 {[%emt 0:00:11]} 11. Bh3 {[%emt 0:03:08]} Qa5 {[%emt 0:11:43]} 12. Qd6 {[%emt 0:25:59]} Nb6 {[%emt 0:03:01]} 13. Bxc8 $11 {[%emt 0:12:04]} Raxc8 {[%emt 0:06:57]} 14. Qc5 {[%emt 0:01:38]} Qxc5 {[%emt 0:23:07]} 15. Bxc5 {[%emt 0:00:06]} Rfe8 {[%emt 0:00:05]} 16. a4 {[%emt 0:02:54]} Nf4 {[%emt 0:03:33]} 17. b3 {[%emt 0:01:17]} Ne6 {[%emt 0:01:02]} 18. Be3 {[%emt 0:02:53]} Rcd8 {[%emt 0:07:04]} 19. a5 {[%emt 0:03:37]} Nc8 {[%emt 0:01:49]} 20. Nd2 {[%emt 0:07:48]} Nd4 {[%emt 0:04:35]} 21. Na4 {[%emt 0:01:09]} b5 {[%emt 0:02:19]} 22. axb6 {[%emt 0:02:03]} axb6 {[%emt 0:00:38]} 23. c3 {[%emt 0:00:10]} b5 {[%emt 0:03:19]} 24. Nc5 {[%emt 0:01:16]} Bf8 {[%emt 0:00:54]} 25. b4 {[%emt 0:01:18]} Ne6 {[%emt 0:06:47]} 26. Ndb3 {[%emt 0:00:30]} Nd6 {[%emt 0:02:59]} 27. Nxe6 {[%emt 0:00:37]} Rxe6 {[%emt 0:00:18]} 28. Na5 {[%emt 0:01:53]} Rc8 {[%emt 0:00:32]} 29. f3 {[%emt 0:00:09]} f5 {[%emt 0:01:03]} 30. gxf6 {[%emt 0:02:43]} Rxf6 {[%emt 0:00:13]} 31. Bc5 {[%emt 0:00:23]} Nc4 {[%emt 0:04:21]} 32. Nxc4 {[%emt 0:02:42]} bxc4 {[%emt 0:00:05]} 33. Rhf1 {[%emt 0:01:11]} Ra8 {[%emt 0:04:59]} 34. Kb2 {[%emt 0:01:15]} Bxc5 {[%emt 0:00:16]} 35. bxc5 {[%emt 0:00:03]} Rf7 {[%emt 0:00:13]} 36. Rb1 {[%emt 0:00:43]} Ra5 {[%emt 0:01:12]} 37. Kc2 {[%emt 0:00:01]} Rxc5 {[%emt 0:00:15]} 38. Rb4 {[%emt 0:00:05]} Ra5 {[%emt 0:00:37]} 39. Rxc4 {[%emt 0:00:07]} c5 {[%emt 0:00:13]} 40. Kd3 {[%emt 0:01:13]} Rf4 {[%emt 0:16:41]} 41. Ke3 {[%emt 0:15:29]} Rh4 {[%emt 0:00:00]} 42. Rf2 {[%emt 0:00:00]} g5 {[%emt 0:00:00]} 43. Rd2 {[%emt 0:00:00]} Rh3 {[%emt 0:00:00]} 44. Rd5 {[%emt 0:00:00]} g4 {[%emt 0:00:00]} 45. Rxe5 {[%emt 0:00:00]} Rxf3+ {[%emt 0:00:00]} 46. Ke2 {[%emt 0:00:00]} Ra2+ {[%emt 0:00:00]} 47. Ke1 {[%emt 0:00:00]} Ra1+ {[%emt 0:00:00]} 48. Ke2 {[%emt 0:00:00]} Ra2+ {[%emt 0:00:00]} 49. Ke1 {[%emt 0:00:00]} Rxh2 {[%emt 0:00:11]} 50. Rcxc5 {[%emt 0:00:00]} h6 {[%emt 0:00:40]} 51. Rc7 {[%emt 0:00:00]} Rf7 {[%emt 0:01:21]} 52. Rxf7 {[%emt 0:00:00]} Kxf7 {[%emt 0:00:01]} 53. c4 {[%emt 0:00:00]} h5 {[%emt 0:02:13]} 54. Kf1 {[%emt 0:00:00]} Kg6 {[%emt 0:00:18]} 55. c5 {[%emt 0:00:00]} Rc2 {[%emt 0:00:43]} 56. Kg1 {[%emt 0:00:00]} h4 {[%emt 0:00:35]} 57. Re6+ {[%emt 0:00:00]} Kg5 {[%emt 0:00:10]} 58. c6 {[%emt 0:00:00]} h3 {[%emt 0:00:34]} 59. e5 {[%emt 0:00:00]} g3 {[%emt 0:00:42]} 60. Rf6 {[%emt 0:00:00]} h2+ {[%emt 0:00:55]} 61. Kh1 {[%emt 0:00:00]} Rc1+ {[%emt 0:00:05]} 0-1

[Event "CZE-ch Open 2018"]
[Site "Ostrava"]
[Date "2018.05.06"]
[Round "9"]
[White "Kana, Pavel"]
[Black "Malinovsky, Petr"]
[Result "1/2-1/2"]
[ECO "B27"]
[WhiteElo "2024"]
[BlackElo "2006"]
[Annotator "NA"]
[PlyCount "20"]
[EventDate "2018.??.??"]
[EventCountry "CZE"]
[SourceTitle "playchess.com"]
[Source "ChessBase"]
[SourceQuality "1"]
[TimeControl "40/5400+30:900+30"]

{[%evp 14,18,3,7,-4,-4,0]} 1. e4 {[%emt 0:01:04]} c5 {[%emt 0:00:04]} 2. Nf3 {[%emt 0:00:39]} g6 {[%emt 0:00:17]} 3. g3 {[%emt 0:02:08]} Nc6 {[%emt 0:01:23]} 4. Bg2 {[%emt 0:00:13]} Bg7 {[%emt 0:00:22]} 5. O-O {[%emt 0:00:20]} Nf6 {[%emt 0:01:51]} 6. d3 {[%emt 0:02:13]} d5 {[%emt 0:01:14]} 7. Nc3 {[%emt 0:02:36]} dxe4 {[%emt 0:07:25]} 8. dxe4 {[%emt 0:04:19] LiveBook: 3 Games} Qxd1 {[%emt 0:05:46]} 9. Rxd1 {[%emt 0:00:13]} Bg4 $11 {[%emt 0:00:11]} 10. Be3 {[%emt 0:08:38]} Nd7 1/2-1/2